{"text_format":"3","workbook":"xlsx","n_sheets":3,"sheets":["Początek","Miesięczny budżet studencki","chart_calcs"],"not_rendered":{"charts":4,"defined_names":19},"read":"whole","date_system":"1900"}

{"sheet":"Początek","index":0,"n_rows":7,"n_cols":2,"rows_kept":7}
[null,"INFORMACJE O TYM SZABLONIE"]
[null,"Użyj arkusza miesięcznego budżetu studenckiego do śledzenia przychodów, wydatków i przepływów gotówkowych."]
[null,"Wprowadź miesięczne przychody i wydatki, aby obliczyć łączne przychody i wydatki."]
[null,"Przepływy gotówkowe są obliczane automatycznie i wykres przepływów gotówkowych jest również aktualizowany."]
[null,"Wybierz suwak, aby uzyskać wykresy przychodów, kosztów i przepływów gotówkowych dla miesiąca i roku."]
[null,"Uwaga: "]
[null,"W kolumnie A arkusza podano dodatkowe instrukcje. Ten tekst został celowo ukryty. Aby usunąć tekst, zaznacz kolumnę A, a następnie naciśnij klawisz DELETE. Aby odkryć tekst, zaznacz kolumnę A, a następnie zmień kolor czcionki."]

{"sheet":"Miesięczny budżet studencki","index":1,"n_rows":72,"n_cols":16,"rows_kept":72,"merged":[[5,1,14,3],[5,4,14,11],[5,12,13,15],[15,1,19,15],[20,1,21,15]]}
["Utwórz miesięczny budżet studencki w tym arkuszu. W komórce po prawej stronie i komórce B1 znajduje się tytuł tego arkusza. W komórkach w tej kolumnie podano przydatne instrukcje na temat korzystania z tego arkusza. Dalsze instrukcje znajdują się w komórce A4.","Miesięczny budżet studencki"]
[]
[]
["Etykieta przychodów znajduje się w komórce po prawej stronie, etykieta wydatków — w komórce E4, a etykieta przepływów gotówkowych — w komórce M4.",{"$f":"chart_calcs!$D$6","v":"dochód w rok:"},null,null,{"$f":"chart_calcs!$D$7","v":"wydatki w rok:"},{"$nulls":7},{"$f":"chart_calcs!$D$8","v":"przepływy gotówkowe w rok:"}]
["Przychody są automatycznie aktualizowane w komórce po prawej stronie, wydatki — w komórka E5, a przepływy gotówkowe — w komórce M5.",{"$f":"\" \"&chart_calcs!$F$6","v":{"$error":"#VALUE!"}},null,null,{"$f":"\" \"&chart_calcs!$F$7","v":{"$error":"#VALUE!"}},{"$nulls":7},{"$f":"\" \"&chart_calcs!$F$8","v":" 169 zł"}]
["Wykres pierścieniowy pokazujący podsumowanie dochodów z komórki po prawej stronie, podsumowanie wydatków — z komórki E6 oraz wykres słupkowy przedstawiający dodatnie i ujemne przepływy gotówkowe — z komórki M6 są aktualizowane automatycznie. Dalsze instrukcje znajdują się w komórce A17.","Wykres pierścieniowy przedstawiający podsumowania przychodów dla wybranego miesiąca lub roku jest w tej komórce.",null,null,"Wykres pierścieniowy przedstawiający podsumowania wydatków dla wybranego miesiąca lub roku jest w tej komórce.",{"$nulls":7},"Wykres słupkowy przedstawiający dodatnie i ujemne przepływy gotówkowe dla wybranego miesiąca lub roku jest w tej komórce."]
{"$rows_empty":9}
[null,"Wykres liniowy przedstawiający przepływy gotówkowe dla wybranego miesiąca i roku jest w tej komórce."]
["Wykres liniowy przepływów gotówkowych znajduje się w komórce po prawej stronie. Dalsze instrukcje znajdują się w komórce A21."]
[]
[]
[]
["Wybierz suwak po prawej stronie, aby uzyskać dane i wykresy miesięcznych lub rocznych przychodów, wydatków i przepływów gotówkowych. Dalsze instrukcje znajdują się w komórce A25.","W tej komórce znajduje się suwak."]
[]
[]
[]
["Wybierz miesiąc w komórce po prawej stronie. Naciśnij klawisze ALT+STRZAŁKA W DÓŁ, aby wyświetlić opcje, a następnie użyj klawiszy STRZAŁKA W DÓŁ i ENTER w celu dokonania wyboru.","STY"]
["Wybrany okres jest automatycznie aktualizowany w komórce P26.",{"$nulls":14},{"$f":"SelectedPeriod","v":{"$error":"#VALUE!"}}]
["W tym wierszu znajdują się następujące etykiety: etykieta miesięcznego stanu gotówki po wydatkach jest w komórce z prawej strony, miesięcy — w komórkach od C27 do N27, roku — w komórce O27 i procentowy wzrost — w komórce P27.","Miesięczna gotówka po wydatkach",{"$f":"FirstMonth","v":{"$error":"#VALUE!"}},{"$f":"NextMonth","v":{"$error":"#VALUE!"}},{"$error":"#VALUE!"},{"$error":"#VALUE!"},{"$error":"#VALUE!"},{"$error":"#VALUE!"},{"$error":"#VALUE!"},{"$error":"#VALUE!"},{"$error":"#VALUE!"},{"$error":"#VALUE!"},{"$error":"#VALUE!"},{"$error":"#VALUE!"},"ROK  ","% WZR "]
["Etykieta przepływów gotówkowych znajduje się w komórce z prawej strony. Przepływy gotówkowe dla każdego miesiąca są automatycznie obliczane w komórkach od C28 do N28, roczna kwota — w komórce O28, a procentowy wzrost — w komórce P28. W komórce Q28 jest automatycznie aktualizowany wykres przebiegu w czasie.","Przepływ gotówkowy",{"$f":"C37-C72","v":169},69,192,199,204,{"v":-771,"d":"-771 "},124,154,{"v":-721,"d":"-721 "},109,34,{"v":-61,"d":"-61 "},{"$f":"SUM(C28:N28)","v":{"v":-299,"d":"-299 "}},{"$f":"INDEX($C28:$O28,,SelectedPeriodColumn)/INDEX($C$37:$O$37,,SelectedPeriodColumn)","v":{"$error":"#VALUE!"}}]
["Etykieta skumulowanych przepływów gotówkowych znajduje się w komórce po prawej stronie. Skumulowane przepływy gotówkowe dla każdego miesiąca są automatycznie obliczane w komórkach od C29 do N29, roczna kwota — w komórce O29, a procentowy wzrost — w komórce P29. W komórce Q29 jest automatycznie aktualizowany wykres przebiegu w czasie. Dalsze instrukcje znajdują się w komórce A31.","Skumulowane przepływy gotówkowe",{"$f":"SUM($C$28:C$28)","v":169},{"$f":"SUM($C$28:D$28)","v":238},{"$f":"SUM($C$28:E$28)","v":430},{"$f":"SUM($C$28:F$28)","v":629},{"$f":"SUM($C$28:G$28)","v":833},{"$f":"SUM($C$28:H$28)","v":62},{"$f":"SUM($C$28:I$28)","v":186},{"$f":"SUM($C$28:J$28)","v":340},{"$f":"SUM($C$28:K$28)","v":{"v":-381,"d":"-381 "}},{"$f":"SUM($C$28:L$28)","v":{"v":-272,"d":"-272 "}},{"$f":"SUM($C$28:M$28)","v":{"v":-238,"d":"-238 "}},{"$f":"SUM($C$28:N$28)","v":{"v":-299,"d":"-299 "}}]
[]
["Etykieta miesięcznego przychodu znajduje się w komórce z prawej strony, miesięcy — w komórkach od C31 do N31, roku — w komórce O31, a procentowego wzrostu — w komórce P31. Wprowadź pozycje miesięcznych przychodów w komórkach od B32 do B36, a miesięczne kwoty — w komórkach od C32 do N36. Roczne przychody są obliczane automatycznie w komórkach od O32 do O36, a procentowy wzrost — w komórkach od P32 do P36. Dalsze instrukcje znajdują się w komórce A37.","PRZYCHÓD MIESIĘCZNY",{"$f":"FirstMonth","v":{"$error":"#VALUE!"}},{"$f":"NextMonth","v":{"$error":"#VALUE!"}},{"$error":"#VALUE!"},{"$error":"#VALUE!"},{"$error":"#VALUE!"},{"$error":"#VALUE!"},{"$error":"#VALUE!"},{"$error":"#VALUE!"},{"$error":"#VALUE!"},{"$error":"#VALUE!"},{"$error":"#VALUE!"},{"$error":"#VALUE!"},"ROK  ","% WZR "]
[null,"Pomoc finansowa (dotacje, stypendia, kredyty) wpłacone Tobie",0,0,750,750,750,750,750,750,750,750,750,750,{"$f":"SUM(C32:N32)","v":{"v":7500,"d":"7,500"}},{"$f":"INDEX($C32:$O32,,SelectedPeriodColumn)/INDEX($C$37:$O$37,,SelectedPeriodColumn)","v":{"$error":"#VALUE!"}}]
[null,"Wypłata z pracy po opodatkowaniu",450,450,450,450,450,450,450,450,550,350,350,350,{"v":5200,"d":"5,200"},{"$f":"INDEX($C33:$O33,,SelectedPeriodColumn)/INDEX($C$37:$O$37,,SelectedPeriodColumn)","v":{"$error":"#VALUE!"}}]
[null,"Pomoc finansowa od rodziny",200,200,{"v":1000,"d":"1,000"},350,350,350,350,350,350,350,350,350,{"v":4550,"d":"4,550"},{"$f":"INDEX($C34:$O34,,SelectedPeriodColumn)/INDEX($C$37:$O$37,,SelectedPeriodColumn)","v":{"$error":"#VALUE!"}}]
[null,"Wypłaty oszczędności",500,350,150,0,0,0,0,0,0,0,0,0,{"v":1000,"d":"1,000"},{"$f":"INDEX($C35:$O35,,SelectedPeriodColumn)/INDEX($C$37:$O$37,,SelectedPeriodColumn)","v":{"$error":"#VALUE!"}}]
[null,"Inne (wsparcie dzieci, pomoc publiczna, prezenty itp.)",75,75,75,75,75,75,75,75,75,75,75,75,900,{"$f":"INDEX($C36:$O36,,SelectedPeriodColumn)/INDEX($C$37:$O$37,,SelectedPeriodColumn)","v":{"$error":"#VALUE!"}}]
["W komórce po prawej stronie znajduje się etykieta Łączny przychód. Łączny przychód dla każdego miesiąca jest automatycznie obliczany w komórkach od C37 do N37, roczny przychód — w komórce O37, a procentowy wzrost — w komórce P37. W komórce Q37 jest automatycznie aktualizowany wykres przebiegu w czasie. Dalsze instrukcje znajdują się w komórce A39.","ŁĄCZNY PRZYCHÓD",{"$f":"SUM(C32:C36)","v":{"v":1225,"d":"1,225"}},{"v":1075,"d":"1,075"},{"v":2425,"d":"2,425"},{"v":1625,"d":"1,625"},{"v":1625,"d":"1,625"},{"v":1625,"d":"1,625"},{"v":1625,"d":"1,625"},{"v":1625,"d":"1,625"},{"v":1725,"d":"1,725"},{"v":1525,"d":"1,525"},{"v":1525,"d":"1,525"},{"v":1525,"d":"1,525"},{"v":19150,"d":"19,150"},{"$f":"INDEX($C37:$O37,,SelectedPeriodColumn)/INDEX($C$37:$O$37,,SelectedPeriodColumn)","v":{"$error":"#VALUE!"}}]
[]
["Etykieta miesięcznych wydatków znajduje się w komórce z prawej strony, miesięcy — w komórkach od C39 do N39, roku — w komórce O39, a procentowego wzrostu — w komórce P39.","WYDATKI MIESIĘCZNE",{"$f":"FirstMonth","v":{"$error":"#VALUE!"}},{"$f":"NextMonth","v":{"$error":"#VALUE!"}},{"$error":"#VALUE!"},{"$error":"#VALUE!"},{"$error":"#VALUE!"},{"$error":"#VALUE!"},{"$error":"#VALUE!"},{"$error":"#VALUE!"},{"$error":"#VALUE!"},{"$error":"#VALUE!"},{"$error":"#VALUE!"},{"$error":"#VALUE!"},"ROK  ","% WZR "]
["Wprowadź i zmodyfikuj pozycję wydatków w komórce z prawej strony, a miesięczne kwoty — w komórkach od C40 do N43. Kwota roczna jest obliczana automatycznie w komórkach od O40 do O43, a procentowy wzrost — w komórkach od P40 do P43. W komórce Q40 jest automatycznie aktualizowany wykres przebiegu w czasie. Dalsze instrukcje znajdują się w komórce A45.","Mieszkanie i wyżywienie",{"$f":"SUM(C41:C43)","v":565},565,565,565,565,565,565,565,565,565,565,565,{"$f":"SUM(C40:N40)","v":{"v":6780,"d":"6,780"}},{"$f":"INDEX($C40:$O40,,SelectedPeriodColumn)/INDEX($C$72:$O$72,,SelectedPeriodColumn)","v":{"$error":"#VALUE!"}}]
[null,null,315,315,315,315,315,315,315,315,315,315,315,315,{"$f":"SUM(C41:N41)","v":{"v":3780,"d":"3,780"}},{"$f":"INDEX($C41:$O41,,SelectedPeriodColumn)/INDEX($C$72:$O$72,,SelectedPeriodColumn)","v":{"$error":"#VALUE!"}}]
[null,null,200,200,200,200,200,200,200,200,200,200,200,200,{"$f":"SUM(C42:N42)","v":{"v":2400,"d":"2,400"}},{"$f":"INDEX($C42:$O42,,SelectedPeriodColumn)/INDEX($C$72:$O$72,,SelectedPeriodColumn)","v":{"$error":"#VALUE!"}}]
[null,null,50,50,50,50,50,50,50,50,50,50,50,50,{"$f":"SUM(C43:N43)","v":600},{"$f":"INDEX($C43:$O43,,SelectedPeriodColumn)/INDEX($C$72:$O$72,,SelectedPeriodColumn)","v":{"$error":"#VALUE!"}}]
[]
["Wprowadź lub zmodyfikuj pozycję wydatków w komórce z prawej strony, a kwoty miesięczne — w komórkach od C45 do N47. Kwota roczna jest obliczana automatycznie w komórkach od O45 do O47, a procentowy wzrost — w komórkach od P45 do P47. W komórce Q45 jest automatycznie aktualizowany wykres przebiegu w czasie. Dalsze instrukcje znajdują się w komórce A49.","Czesne i opłaty",{"$f":"SUM(C46:C47)","v":0},0,750,0,0,650,0,0,650,0,0,0,{"$f":"SUM(C45:N45)","v":{"v":2050,"d":"2,050"}},{"$f":"INDEX($C45:$O45,,SelectedPeriodColumn)/INDEX($C$72:$O$72,,SelectedPeriodColumn)","v":{"$error":"#VALUE!"}}]
[null,null,0,0,500,0,0,500,0,0,500,0,0,0,{"$f":"SUM(C46:N46)","v":{"v":1500,"d":"1,500"}},{"$f":"INDEX($C46:$O46,,SelectedPeriodColumn)/INDEX($C$72:$O$72,,SelectedPeriodColumn)","v":{"$error":"#VALUE!"}}]
[null,null,0,0,250,0,0,150,0,0,150,0,0,0,{"$f":"SUM(C47:N47)","v":550},{"$f":"INDEX($C47:$O47,,SelectedPeriodColumn)/INDEX($C$72:$O$72,,SelectedPeriodColumn)","v":{"$error":"#VALUE!"}}]
[]
["Wprowadź lub zmodyfikuj pozycję wydatków w komórce z prawej strony, a miesięczne kwoty — w komórkach od C49 do N51. Kwota roczna jest obliczana automatycznie w komórkach od O49 do O51, a procentowy wzrost — w komórkach od P49 do P51. W komórce Q49 jest automatycznie aktualizowany wykres przebiegu w czasie. Dalsze instrukcje znajdują się w komórce A53.","Książki i inne materiały",{"$f":"SUM(C50:C51)","v":0},0,325,20,20,325,10,10,400,15,15,15,{"$f":"SUM(C49:N49)","v":{"v":1155,"d":"1,155"}},{"$f":"INDEX($C49:$O49,,SelectedPeriodColumn)/INDEX($C$72:$O$72,,SelectedPeriodColumn)","v":{"$error":"#VALUE!"}}]
[null,null,0,0,225,0,0,275,0,0,325,0,0,0,{"$f":"SUM(C50:N50)","v":825},{"$f":"INDEX($C50:$O50,,SelectedPeriodColumn)/INDEX($C$72:$O$72,,SelectedPeriodColumn)","v":{"$error":"#VALUE!"}}]
[null,null,0,0,100,20,20,50,10,10,75,15,15,15,{"$f":"SUM(C51:N51)","v":330},{"$f":"INDEX($C51:$O51,,SelectedPeriodColumn)/INDEX($C$72:$O$72,,SelectedPeriodColumn)","v":{"$error":"#VALUE!"}}]
[]
["Wprowadź lub zmodyfikuj pozycję wydatków w komórce z prawej strony, a kwoty miesięczne — w komórkach od C53 do N57. Kwota roczna jest obliczana automatycznie w komórkach od O53 do O57, a procentowy wzrost — w komórkach od P53 do P57. W komórce Q53 jest automatycznie aktualizowany wykres przebiegu w czasie. Dalsze instrukcje znajdują się w komórce A59.","Transport",{"$f":"SUM(C54:C57)","v":224},174,174,219,174,174,274,219,174,174,224,269,{"$f":"SUM(C53:N53)","v":{"v":2473,"d":"2,473"}},{"$f":"INDEX($C53:$O53,,SelectedPeriodColumn)/INDEX($C$72:$O$72,,SelectedPeriodColumn)","v":{"$error":"#VALUE!"}}]
[null,null,30,30,30,75,30,30,30,75,30,30,30,75,{"$f":"SUM(C54:N54)","v":495},{"$f":"INDEX($C54:$O54,,SelectedPeriodColumn)/INDEX($C$72:$O$72,,SelectedPeriodColumn)","v":{"$error":"#VALUE!"}}]
[null,null,129,129,129,129,129,129,129,129,129,129,129,129,{"$f":"SUM(C55:N55)","v":{"v":1548,"d":"1,548"}},{"$f":"INDEX($C55:$O55,,SelectedPeriodColumn)/INDEX($C$72:$O$72,,SelectedPeriodColumn)","v":{"$error":"#VALUE!"}}]
[null,null,15,15,15,15,15,15,15,15,15,15,15,15,{"$f":"SUM(C56:N56)","v":180},{"$f":"INDEX($C56:$O56,,SelectedPeriodColumn)/INDEX($C$72:$O$72,,SelectedPeriodColumn)","v":{"$error":"#VALUE!"}}]
[null,null,50,0,0,0,0,0,100,0,0,0,50,50,{"$f":"SUM(C57:N57)","v":250},{"$f":"INDEX($C57:$O57,,SelectedPeriodColumn)/INDEX($C$72:$O$72,,SelectedPeriodColumn)","v":{"$error":"#VALUE!"}}]
[]
["Wprowadź lub zmodyfikuj pozycję wydatków w komórce z prawej strony, a miesięczne kwoty — w komórkach od C59 do N65. Kwota roczna jest obliczana automatycznie w komórkach od O59 do O65, a procentowy wzrost — w komórkach od P59 do P65. W komórce Q59 jest automatycznie aktualizowany wykres przebiegu w czasie. Dalsze instrukcje znajdują się w komórce A67.","Dowolne",{"$f":"SUM(C60:C65)","v":69},69,169,369,419,444,419,419,394,394,419,469,{"$f":"SUM(C59:N59)","v":{"v":4053,"d":"4,053"}},{"$f":"INDEX($C59:$O59,,SelectedPeriodColumn)/INDEX($C$72:$O$72,,SelectedPeriodColumn)","v":{"$error":"#VALUE!"}}]
[null,null,0,0,0,50,100,100,100,100,75,75,100,100,800,{"$f":"INDEX($C60:$O60,,SelectedPeriodColumn)/INDEX($C$72:$O$72,,SelectedPeriodColumn)","v":{"$error":"#VALUE!"}}]
[null,null,69,69,69,69,69,69,69,69,69,69,69,69,828,{"$f":"INDEX($C61:$O61,,SelectedPeriodColumn)/INDEX($C$72:$O$72,,SelectedPeriodColumn)","v":{"$error":"#VALUE!"}}]
[null,null,0,0,0,0,0,25,0,0,0,0,0,50,75,{"$f":"INDEX($C62:$O62,,SelectedPeriodColumn)/INDEX($C$72:$O$72,,SelectedPeriodColumn)","v":{"$error":"#VALUE!"}}]
[null,null,0,0,100,100,100,100,100,100,100,100,100,100,{"v":1000,"d":"1,000"},{"$f":"INDEX($C63:$O63,,SelectedPeriodColumn)/INDEX($C$72:$O$72,,SelectedPeriodColumn)","v":{"$error":"#VALUE!"}}]
[null,null,0,0,0,50,50,50,50,50,50,50,50,50,450,{"$f":"INDEX($C64:$O64,,SelectedPeriodColumn)/INDEX($C$72:$O$72,,SelectedPeriodColumn)","v":{"$error":"#VALUE!"}}]
[null,null,0,0,0,100,100,100,100,100,100,100,100,100,900,{"$f":"INDEX($C65:$O65,,SelectedPeriodColumn)/INDEX($C$72:$O$72,,SelectedPeriodColumn)","v":{"$error":"#VALUE!"}}]
[]
["Wprowadź lub zmodyfikuj pozycję wydatków w komórce z prawej strony, a kwoty miesięczne — w komórkach od C67 do N70. Kwota roczna jest obliczana automatycznie w komórkach od O67 do O70, a procentowy wzrost — w komórkach od P67 do P70. W komórce Q67 jest automatycznie aktualizowany wykres przebiegu w czasie. Dalsze instrukcje znajdują się w komórce A72.","Inne wydatki",{"$f":"SUM(C68:C70)","v":198},{"$f":"SUM(D68:D70)","v":198},250,253,243,238,233,258,263,268,268,268,{"$f":"SUM(C67:N67)","v":{"v":2938,"d":"2,938"}},{"$f":"INDEX($C67:$O67,,SelectedPeriodColumn)/INDEX($C$72:$O$72,,SelectedPeriodColumn)","v":{"$error":"#VALUE!"}}]
[null,null,123,123,123,123,123,123,123,123,123,123,123,123,{"$f":"SUM(C68:N68)","v":{"v":1476,"d":"1,476"}},{"$f":"INDEX($C68:$O68,,SelectedPeriodColumn)/INDEX($C$72:$O$72,,SelectedPeriodColumn)","v":{"$error":"#VALUE!"}}]
[null,null,0,0,52,55,45,40,35,60,65,70,70,70,{"$f":"SUM(C69:N69)","v":562},{"$f":"INDEX($C69:$O69,,SelectedPeriodColumn)/INDEX($C$72:$O$72,,SelectedPeriodColumn)","v":{"$error":"#VALUE!"}}]
[null,null,75,75,75,75,75,75,75,75,75,75,75,75,{"$f":"SUM(C70:N70)","v":900},{"$f":"INDEX($C70:$O70,,SelectedPeriodColumn)/INDEX($C$72:$O$72,,SelectedPeriodColumn)","v":{"$error":"#VALUE!"}}]
[]
["W komórce po prawej stronie znajduje się etykieta Wydatki łączne. Wydatki łączne dla każdego miesiąca są obliczane automatycznie w komórkach od C73 do N73, roczne wydatki — w komórce O73, a procentowy wzrost — w komórce P73. W komórce Q73 jest automatycznie aktualizowany wykres przebiegu w czasie.","WYDATKI ŁĄCZNIE",{"$f":"SUM(C40,C45,C49,C53,C59,C67)","v":{"v":1056,"d":"1,056"}},{"v":1006,"d":"1,006"},{"v":2233,"d":"2,233"},{"v":1426,"d":"1,426"},{"v":1421,"d":"1,421"},{"v":2396,"d":"2,396"},{"v":1501,"d":"1,501"},{"v":1471,"d":"1,471"},{"v":2446,"d":"2,446"},{"v":1416,"d":"1,416"},{"v":1491,"d":"1,491"},{"v":1586,"d":"1,586"},{"$f":"SUM(C72:N72)","v":{"v":19449,"d":"19,449"}},{"$f":"INDEX($C72:$O72,,SelectedPeriodColumn)/INDEX($C$72:$O$72,,SelectedPeriodColumn)","v":{"$error":"#VALUE!"}}]

{"sheet":"chart_calcs","index":2,"n_rows":23,"n_cols":16,"rows_kept":23,"hidden":true}
["***Ten arkusz powinien pozostać UKRYTY***"]
[]
[{"$nulls":3},{"$f":"IFERROR(LOWER(TEXT(VALUE(SelectedPeriod&\" 1\"),\"mmmm\")),\"rok\")","v":"rok"}]
[]
[{"$nulls":3},"Tytuły wykresów dynamicznych"]
[{"$nulls":3},{"$f":"\"dochód w \"&D3&\":\"","v":"dochód w rok:"},null,{"$f":"TEXT(INDEX('Miesięczny budżet studencki'!$C$37:$O$37,,SelectedPeriodColumn),\"# ### zł\")","v":{"$error":"#VALUE!"}}]
[{"$nulls":3},{"$f":"\"wydatki w \"&D3&\":\"","v":"wydatki w rok:"},null,{"$f":"TEXT(INDEX('Miesięczny budżet studencki'!$C$72:$O$72,,SelectedPeriodColumn),\"# ### zł\")","v":{"$error":"#VALUE!"}}]
[{"$nulls":3},{"$f":"\"przepływy gotówkowe w \"&D3&\":\"","v":"przepływy gotówkowe w rok:"},{"$f":"INDEX('Miesięczny budżet studencki'!C28:O28,ScrollBarValue)","v":169},{"$f":"TEXT(E8,\"# ### zł\")","v":"169 zł"}]
[]
[]
[]
[{"$nulls":3},{"$f":"LOWER('Miesięczny budżet studencki'!C27)","v":{"$error":"#VALUE!"}},{"$f":"LOWER('Miesięczny budżet studencki'!D27)","v":{"$error":"#VALUE!"}},{"$f":"LOWER('Miesięczny budżet studencki'!E27)","v":{"$error":"#VALUE!"}},{"$f":"LOWER('Miesięczny budżet studencki'!F27)","v":{"$error":"#VALUE!"}},{"$f":"LOWER('Miesięczny budżet studencki'!G27)","v":{"$error":"#VALUE!"}},{"$f":"LOWER('Miesięczny budżet studencki'!H27)","v":{"$error":"#VALUE!"}},{"$f":"LOWER('Miesięczny budżet studencki'!I27)","v":{"$error":"#VALUE!"}},{"$f":"LOWER('Miesięczny budżet studencki'!J27)","v":{"$error":"#VALUE!"}},{"$f":"LOWER('Miesięczny budżet studencki'!K27)","v":{"$error":"#VALUE!"}},{"$f":"LOWER('Miesięczny budżet studencki'!L27)","v":{"$error":"#VALUE!"}},{"$f":"LOWER('Miesięczny budżet studencki'!M27)","v":{"$error":"#VALUE!"}},{"$f":"LOWER('Miesięczny budżet studencki'!N27)","v":{"$error":"#VALUE!"}},{"$f":"LOWER('Miesięczny budżet studencki'!O27)","v":"rok  "}]
[null,null,"Wartość paska przewijania: ",1]
[null,null,"Wykres przepływów gotówkowych: ",{"$f":"IF(SelectedPeriod='Miesięczny budżet studencki'!C$31,IF('Miesięczny budżet studencki'!$C$28:$O$28>=0,'Miesięczny budżet studencki'!$C$28:$O$28,NA()),NA())","v":{"$error":"#VALUE!"}},{"$f":"IF(SelectedPeriod='Miesięczny budżet studencki'!D$31,IF('Miesięczny budżet studencki'!$C$28:$O$28>=0,'Miesięczny budżet studencki'!$C$28:$O$28,NA()),NA())","v":{"$error":"#VALUE!"}},{"$f":"IF(SelectedPeriod='Miesięczny budżet studencki'!E$31,IF('Miesięczny budżet studencki'!$C$28:$O$28>=0,'Miesięczny budżet studencki'!$C$28:$O$28,NA()),NA())","v":{"$error":"#VALUE!"}},{"$f":"IF(SelectedPeriod='Miesięczny budżet studencki'!F$31,IF('Miesięczny budżet studencki'!$C$28:$O$28>=0,'Miesięczny budżet studencki'!$C$28:$O$28,NA()),NA())","v":{"$error":"#VALUE!"}},{"$f":"IF(SelectedPeriod='Miesięczny budżet studencki'!G$31,IF('Miesięczny budżet studencki'!$C$28:$O$28>=0,'Miesięczny budżet studencki'!$C$28:$O$28,NA()),NA())","v":{"$error":"#VALUE!"}},{"$f":"IF(SelectedPeriod='Miesięczny budżet studencki'!H$31,IF('Miesięczny budżet studencki'!$C$28:$O$28>=0,'Miesięczny budżet studencki'!$C$28:$O$28,NA()),NA())","v":{"$error":"#VALUE!"}},{"$f":"IF(SelectedPeriod='Miesięczny budżet studencki'!I$31,IF('Miesięczny budżet studencki'!$C$28:$O$28>=0,'Miesięczny budżet studencki'!$C$28:$O$28,NA()),NA())","v":{"$error":"#VALUE!"}},{"$f":"IF(SelectedPeriod='Miesięczny budżet studencki'!J$31,IF('Miesięczny budżet studencki'!$C$28:$O$28>=0,'Miesięczny budżet studencki'!$C$28:$O$28,NA()),NA())","v":{"$error":"#VALUE!"}},{"$f":"IF(SelectedPeriod='Miesięczny budżet studencki'!K$31,IF('Miesięczny budżet studencki'!$C$28:$O$28>=0,'Miesięczny budżet studencki'!$C$28:$O$28,NA()),NA())","v":{"$error":"#VALUE!"}},{"$f":"IF(SelectedPeriod='Miesięczny budżet studencki'!L$31,IF('Miesięczny budżet studencki'!$C$28:$O$28>=0,'Miesięczny budżet studencki'!$C$28:$O$28,NA()),NA())","v":{"$error":"#VALUE!"}},{"$f":"IF(SelectedPeriod='Miesięczny budżet studencki'!M$31,IF('Miesięczny budżet studencki'!$C$28:$O$28>=0,'Miesięczny budżet studencki'!$C$28:$O$28,NA()),NA())","v":{"$error":"#VALUE!"}},{"$f":"IF(SelectedPeriod='Miesięczny budżet studencki'!N$31,IF('Miesięczny budżet studencki'!$C$28:$O$28>=0,'Miesięczny budżet studencki'!$C$28:$O$28,NA()),NA())","v":{"$error":"#VALUE!"}},{"$f":"IF(SelectedPeriod='Miesięczny budżet studencki'!O$31,IF('Miesięczny budżet studencki'!$C$28:$O$28>=0,'Miesięczny budżet studencki'!$C$28:$O$28,NA()),NA())","v":{"$error":"#VALUE!"}}]
[null,null,"Skumulowany: ",{"$f":"IF(SelectedPeriod='Miesięczny budżet studencki'!C$31,IF('Miesięczny budżet studencki'!$C$28:$O$28<0,'Miesięczny budżet studencki'!$C$28:$O$28,NA()),NA())","v":{"$error":"#VALUE!"}},{"$f":"IF(SelectedPeriod='Miesięczny budżet studencki'!D$31,IF('Miesięczny budżet studencki'!$C$28:$O$28<0,'Miesięczny budżet studencki'!$C$28:$O$28,NA()),NA())","v":{"$error":"#VALUE!"}},{"$f":"IF(SelectedPeriod='Miesięczny budżet studencki'!E$31,IF('Miesięczny budżet studencki'!$C$28:$O$28<0,'Miesięczny budżet studencki'!$C$28:$O$28,NA()),NA())","v":{"$error":"#VALUE!"}},{"$f":"IF(SelectedPeriod='Miesięczny budżet studencki'!F$31,IF('Miesięczny budżet studencki'!$C$28:$O$28<0,'Miesięczny budżet studencki'!$C$28:$O$28,NA()),NA())","v":{"$error":"#VALUE!"}},{"$f":"IF(SelectedPeriod='Miesięczny budżet studencki'!G$31,IF('Miesięczny budżet studencki'!$C$28:$O$28<0,'Miesięczny budżet studencki'!$C$28:$O$28,NA()),NA())","v":{"$error":"#VALUE!"}},{"$f":"IF(SelectedPeriod='Miesięczny budżet studencki'!H$31,IF('Miesięczny budżet studencki'!$C$28:$O$28<0,'Miesięczny budżet studencki'!$C$28:$O$28,NA()),NA())","v":{"$error":"#VALUE!"}},{"$f":"IF(SelectedPeriod='Miesięczny budżet studencki'!I$31,IF('Miesięczny budżet studencki'!$C$28:$O$28<0,'Miesięczny budżet studencki'!$C$28:$O$28,NA()),NA())","v":{"$error":"#VALUE!"}},{"$f":"IF(SelectedPeriod='Miesięczny budżet studencki'!J$31,IF('Miesięczny budżet studencki'!$C$28:$O$28<0,'Miesięczny budżet studencki'!$C$28:$O$28,NA()),NA())","v":{"$error":"#VALUE!"}},{"$f":"IF(SelectedPeriod='Miesięczny budżet studencki'!K$31,IF('Miesięczny budżet studencki'!$C$28:$O$28<0,'Miesięczny budżet studencki'!$C$28:$O$28,NA()),NA())","v":{"$error":"#VALUE!"}},{"$f":"IF(SelectedPeriod='Miesięczny budżet studencki'!L$31,IF('Miesięczny budżet studencki'!$C$28:$O$28<0,'Miesięczny budżet studencki'!$C$28:$O$28,NA()),NA())","v":{"$error":"#VALUE!"}},{"$f":"IF(SelectedPeriod='Miesięczny budżet studencki'!M$31,IF('Miesięczny budżet studencki'!$C$28:$O$28<0,'Miesięczny budżet studencki'!$C$28:$O$28,NA()),NA())","v":{"$error":"#VALUE!"}},{"$f":"IF(SelectedPeriod='Miesięczny budżet studencki'!N$31,IF('Miesięczny budżet studencki'!$C$28:$O$28<0,'Miesięczny budżet studencki'!$C$28:$O$28,NA()),NA())","v":{"$error":"#VALUE!"}},{"$f":"IF(SelectedPeriod='Miesięczny budżet studencki'!O$31,IF('Miesięczny budżet studencki'!$C$28:$O$28<0,'Miesięczny budżet studencki'!$C$28:$O$28,NA()),NA())","v":{"$error":"#VALUE!"}}]
[]
[]
[null,null,"DANE WYKRESU DOCHODU"]
[null,null,"Pomoc finansowa (dotacje, stypendia, kredyty) wpłacone Tobie",{"$f":"'Miesięczny budżet studencki'!P32","v":{"$error":"#VALUE!"}}]
[null,null,"Wypłata z pracy po opodatkowaniu",{"$f":"'Miesięczny budżet studencki'!P33","v":{"$error":"#VALUE!"}}]
[null,null,"Pomoc finansowa od rodziny",{"$f":"'Miesięczny budżet studencki'!P34","v":{"$error":"#VALUE!"}}]
[null,null,"Wypłaty oszczędności",{"$f":"'Miesięczny budżet studencki'!P35","v":{"$error":"#VALUE!"}}]
[null,null,"Inne (wsparcie dzieci, pomoc publiczna, prezenty itp.)",{"$f":"'Miesięczny budżet studencki'!P36","v":{"$error":"#VALUE!"}}]